Cogmind - Beta 16 @@@ ROGUE MODE // 2025.11.25 @ 20:34:01 Player: Mozco Result: Destroyed by YI-UF0 with YI-UF0's Doublenader Performance ------------- Evolutions (0) 0 Regions Visited (2) 400 Robots Destroyed (30) 150 Value Destroyed (500) 500 Prototype IDs (0) 0 Alien Tech Used (0) 0 Bonus (0) 0 TOTAL SCORE: 1050 Bonus ------- None Cogmind --------- Core Integrity 0/250 Matter 224/300 Energy 78/100 System Corruption 0% Temperature Cool (0) Movement Rolling (200) Ox8 Location -10/Mines Parts ------- > --- POWER (1) -------- (None) > --- PROPULSION (2) --- Wheel > --- UTILITY (2) ------ Huge Storage Unit Hardened Light Armor Plating > --- WEAPON (2) ------- Light Assault Rifle Light Assault Rifle > --- INVENTORY (25) --- Wheel Wheel Wheel Compact Wheel Compact Wheel Machine Analyzer Improved Terrain Scanner Hardened Light Armor Plating Hardened Light Armor Plating Shield Generator Shield Generator Shield Generator Shield Generator Medium Laser Grenade Launcher Peak State ------------ > --- POWER ------------ Ion Engine > --- PROPULSION ------- Wheel Wheel > --- UTILITY ---------- Huge Storage Unit Hardened Light Armor Plating > --- WEAPON ----------- Assault Rifle Light Assault Rifle > --- INVENTORY -------- Wheel Compact Wheel Machine Analyzer Hardened Light Armor Plating Hardened Light Armor Plating Hardened Light Armor Plating Shield Generator Shield Generator Shield Generator Shield Generator Medium Laser Light Assault Rifle Grenade Launcher [Rating: 10] Favorites ----------- Power Ion Engine Engine Ion Engine Propulsion Wheel Wheel Wheel Utility Huge Storage Unit Device Heat Sink Storage Huge Storage Unit Protection Hardened Light Armor Plating Weapon Assault Rifle Energy Gun Medium Laser Ballistic Gun Assault Rifle Launcher Grenade Launcher Build | -11 -10 -10 ------- Run | Yrd Mat Min Slots Evolved . | . . . Power . | . . . Propulsion . | . . . Utility . | . . . Weapon . | . . . Parts Attached 23 | 7 15 1 Power 2 | 1 1 . Engine 2 | 1 1 . Core . | . . . Reactor . | . . . Propulsion 8 | 2 6 . Treads . | . . . Leg . | . . . Wheel 8 | 2 6 . Hover . | . . . Flight . | . . . Utility 6 | 1 4 1 Device 1 | . 1 . Storage 3 | 1 2 . Processor . | . . . Hackware . | . . . Protection 2 | . 1 1 Artifact . | . . . Weapon 7 | 3 4 . Energy Gun 1 | 1 . . Energy Cannon . | . . . Ballistic Gun 5 | 2 3 . Ballistic Cannon . | . . . Launcher 1 | . 1 . Special Weapon . | . . . Impact Weapon . | . . . Slashing Weapon . | . . . Piercing Weapon . | . . . Special Melee Weapon . | . . . Unidentified Prototypes . | . . . Parts Lost 9 | . 5 4 Power 2 | . 1 1 Propulsion 3 | . 2 1 Utility 2 | . 1 1 Weapon 2 | . 1 1 Highest Loss Streak 4 | . 2 4 To Critical Strikes . | . . . Average Backups 9 | 1 9 17 Power . | . . . Propulsion 1 | . 1 5 Utility 3 | . 3 9 Weapon 3 | . 3 3 Tool/Special . | . . . Unused Backups 9 | . . 9 Power . | . . . Propulsion 1 | . . 1 Utility 8 | . . 8 Weapon . | . . . Tool/Special . | . . . Average Slot Usage (%) 94 | . 94 94 Engine 13 | . 13 11 Wheel 26 | . 26 25 Device 5 | . 5 . Storage 15 | . 15 14 Protection 4 | . 4 14 Energy Gun 4 | . 4 . Ballistic Gun 23 | . 23 28 Peak Build Rating 10 | 6 10 10 Average Rating 7 | 4 7 9 On Entrance 5 | . 6 10 Avg Prop Armor Cover (%) . | . . . Naked Turns . | . . . Heaviest Build 168 | 14 168 93 Greatest Support 26 | 26 26 20 Greatest Overweight (x) 9 | . 9 4 Average Overweight (x) 3 | . 3 4 Largest Inventory Capacity 25 | 8 25 25 Average Capacity 23 | 5 24 25 Most Carried 17 | 3 17 17 Average Carried 9 | 1 9 16 Final Capacity 25 | 8 25 25 Final Carried 17 | 2 17 15 Class Distribution -------------------- 88% | Mutant 11% | Scavenger-Mutant Dominant Class ---------------- Mutant | -10/Materials Mutant | -10/Mines Resources | -11 -10 -10 ----------- Run | Yrd Mat Min Matter Collected 773 | 230 543 . Remotely . | . . . Salvage Created 808 | . 808 . Parts 59 | . 59 . Haulers Intercepted 2 | . 2 . Recyclers Shooed 1 | . 1 . Parts Field Recycled . | . . . Retrieved Matter . | . . . Parts Self-Destructed . | . . . Prevented . | . . . Parts Restored . | . . . Kills | -11 -10 -10 ------- Run | Yrd Mat Min Combat Hostiles Destroyed 15 | . 15 . Guns 9 | . 9 . AOE 6 | . 6 . Classes Destroyed 9 | . 9 . Worker 6 | . 6 . Builder 2 | . 2 . Tunneler 1 | . 1 . Hauler 2 | . 2 . Recycler 1 | . 1 . Mechanic 1 | . 1 . Watcher 2 | . 2 . Swarmer 6 | . 6 . Grunt 9 | . 9 . Best Kill Streak 5 | . 5 . Combat Bots Only 3 | . 3 . Max Kills in Single Turn 3 | . 3 . Gunslinging . | . . . Exploded 3 | . 3 . Melee . | . . . Uniques/NPCs Destroyed . | . . . Combat | -11 -10 -10 -------- Run | Yrd Mat Min Hostile Shots Fired 80 | . 56 24 Missed 28 | . 17 11 Hits 52 | . 39 13 Projectile 52 | . 39 13 AOE 21 | . . 21 Damage Taken 1269 | . 681 588 Core 252 | . 122 130 Absorbed by Shields . | . . . Regen/Repaired (Parts) 34 | . 34 . Core Remaining (%) 100 | 100 . . Volleys Fired 108 | 1 98 9 Largest 2 | 2 2 2 Hottest 70 | 70 70 40 Shots Fired 212 | 2 192 18 Gun 208 | 2 188 18 Cannon . | . . . Launcher 4 | . 4 . Special . | . . . Kinetic 173 | 1 154 18 Thermal 35 | 1 34 . Explosive 4 | . 4 . Electromagnetic . | . . . Robot Hit Streak 9 | 1 9 4 Robot Miss Streak 7 | 1 5 7 Penetration Max . | . . . Secondary Targets 1 | . 1 . Max Gunslinging Chain 1 | . 1 . Shots Hit Robots 121 | 1 113 7 Core Hits 54 | . 50 4 Critical Kills . | . . . Critical Parts Destroyed . | . . . Critical Strikes 4 | . 4 . Burn 4 | . 4 . Melee Attacks . | . . . Impact . | . . . Slashing . | . . . Piercing . | . . . Sneak Attacks . | . . . Combat Hostiles . | . . . Follow-up Attacks . | . . . Damage Inflicted 1730 | 13 1649 68 Guns 1305 | 13 1224 68 Cannons . | . . . Explosions 425 | . 425 . Melee . | . . . Ramming . | . . . Kinetic 1039 | 13 958 68 Thermal 266 | . 266 . Explosive 425 | . 425 . Electromagnetic . | . . . Impact . | . . . Slashing . | . . . Piercing . | . . . Highest Corruption . | . . . Average Corruption . | . . . Corruption Purged . | . . . Corruption Blocked . | . . . Overload Shots . | . . . Overflow Damage 76 | . 76 . Projectiles . | . . . Explosions 76 | . 76 . Melee . | . . . Knockbacks . | . . . Impact . | . . . Kinetic . | . . . Secondary . | . . . Self-Inflicted Damage 188 | . 188 . Shots 2 | . 2 . Rammed . | . . . Targets Rammed . | . . . Kicked . | . . . Crushed . | . . . Highest Temperature 30 | 9 30 20 Average Temperature 9 | 6 9 9 Received Heat Transfer 195 | . 195 . Siege Activations . | . . . Martial Activations . | . . . Shielding Activations . | . . . Robots Disrupted . | . . . Combat Hostiles . | . . . Robots Corrupted . | . . . Combat Hostiles . | . . . Parts Fried . | . . . Impact Corruptions . | . . . Robots Melted . | . . . Combat Hostiles . | . . . Parts Melted 1 | . 1 . Heat Transferred 1073 | . 1073 . Parts Sabotaged . | . . . Parts Stolen . | . . . Parts Stripped . | . . . Power Chain Reactions . | . . . Alert | -11 -10 -10 ------- Run | Yrd Mat Min Maximum Alert Level . | . . . Low Security (%) 100 | 100 100 100 Level 1 . | . . . Level 2 . | . . . Level 3 . | . . . Level 4 . | . . . Level 5 . | . . . High Security . | . . . Max Security . | . . . Peak Influence 178 | . 178 31 Initial 31 | . . 31 Average 97 | . 107 18 Influence Increases 581 | . 581 . Destroy 0b10 Robot/C 300 | . 300 . Destroy 0b10 Robot/NC 75 | . 75 . Destroy Leader 88 | . 88 . Successful Hack 8 | . 8 . Disable Machine 45 | . 45 . Destroy Structure 65 | . 65 . Influence Decreases 581 | . 498 83 Entered New Map 52 | . . 52 Time Decay 468 | . 448 20 Lost Part 61 | . 50 11 Squads Dispatched 5 | . 5 . Investigation 3 | . 3 . Extermination . | . . . Reinforcement 2 | . 2 . Assault . | . . . Garrison . | . . . Intercept . | . . . Searches Triggered . | . . . Construction Impeded . | . . . Haulers Reinforced . | . . . Active Scanning Responses . | . . . Cargo Convoy Interrupts . | . . . Stealth | -11 -10 -10 --------- Run | Yrd Mat Min Distress Signals 3 | . 3 . Communications Jammed . | . . . Distress Signals . | . . . Times Spotted 26 | . 25 1 Peak Tracking Total 5 | . 5 1 Tactical Retreats . | . . . Traps | -11 -10 -10 ------- Run | Yrd Mat Min Traps Triggered 3 | . 3 . Indirectly . | . . . Trap Hack Attempts . | . . . Triggered . | . . . Disarmed . | . . . Reprogrammed . | . . . Reused . | . . . Traps Extracted . | . . . Installed . | . . . Triggered . | . . . Machines | -11 -10 -10 ---------- Run | Yrd Mat Min Machines Disabled 3 | . 3 . Max in Single Turn 1 | . 1 . Machines Repaired . | . . . Machines Dismantled . | . . . Machines Sabotaged . | . . . Overloaded Fab Kills . | . . . Hacking | -11 -10 -10 --------- Run | Yrd Mat Min Machines Accessed 3 | . 3 . Terminals 2 | . 2 . Fabricators . | . . . Repair Stations 1 | . 1 . Recycling Units . | . . . Scanalyzers . | . . . Garrison Access . | . . . Total Hacks 8 | . 8 . Successful 6 | . 6 . Failed 1 | . 1 . Catastrophic . | . . . Database Lockouts 1 | . 1 . Manual 6 | . 6 . Terminals 6 | . 6 . Fabricators . | . . . Repair Stations 2 | . 2 . Recycling Units . | . . . Scanalyzers . | . . . Garrison Access . | . . . Terminal Hacks 2 | . 2 . Robot Analysis 2 | . 2 . Fabricator Hacks . | . . . Repair Station Hacks 2 | . 2 . Scan Component 1 | . 1 . Repair 1 | . 1 . Recycling Unit Hacks . | . . . Scanalyzer . | . . . Garrison Access Hacks . | . . . Unauthorized Hacks 2 | . 2 . Terminals 2 | . 2 . Botnet 2 | . 2 . Fabricators . | . . . Repair Stations . | . . . Recycling Units . | . . . Scanalyzers . | . . . Garrison Access . | . . . Data Cores Recovered . | . . . Used . | . . . Hacking Detections 2 | . 2 . Full Trace Events 1 | . 1 . Feedback Events . | . . . Feedback Blocked . | . . . Robot Schematics Acquired . | . . . Robots Built . | . . . Authchips . | . . . Time . | . . . Total Robot Build Rating . | . . . Part Schematics Acquired . | . . . Parts Built . | . . . Authchips . | . . . Time . | . . . Total Part Build Rating . | . . . Part Studies Acquired . | . . . Parts Repaired 1 | . 1 . Time 26 | . 26 . Parts Recycled . | . . . Recycled Matter . | . . . Retrieved Matter . | . . . Retrieved Components . | . . . Parts Scanalyzed . | . . . Part Schematics Acquired . | . . . Parts Damaged . | . . . Bothacking | -11 -10 -10 ------------ Run | Yrd Mat Min Used RIF Installer . | . . . Robots Hacked . | . . . Non-combat . | . . . Combat . | . . . Robot Hacks Applied . | . . . Relay Couplers Released . | . . . Fabnet Peak Effective % . | . . . Robots Rewired . | . . . Allies Hacked . | . . . Hacks Repelled . | . . . Allies | -11 -10 -10 -------- Run | Yrd Mat Min Total Allies . | . . . Largest Group . | . . . Highest-Rated Group . | . . . Highest-Rated Ally . | . . . Total Orders . | . . . Ally Attacks . | . . . Total Damage . | . . . Kills . | . . . Allies Corrupted . | . . . Allies Melted . | . . . Intel | -11 -10 -10 ------- Run | Yrd Mat Min Active Infowar (turns) . | . . . Robot Analysis Total 2 | . 2 . Derelict Logs Recovered . | . . . Drone Launches . | . . . Drone Recoveries . | . . . Exploration | -11 -10 -10 ------------- Run | Yrd Mat Min Turns Passed 1268 | 68 1150 50 Spaces Moved 651 | 60 578 13 Core 1 | 1 . . Treads . | . . . Legs . | . . . Wheels 650 | 59 578 13 Hover . | . . . Flight . | . . . Fastest Speed 50 | 50 90 140 Average Speed 133 | 89 138 140 Slowest Speed 215 | 90 215 140 Overloaded Moves . | . . . Propulsion Burnouts . | . . . Robots Hopped . | . . . Potential Cave-ins . | . . . Cave-ins Triggered . | . . . Exploration Rate (%) 27 | 3 69 11 Regions Visited 2 Branch Regions 1 Pre-discovered Areas . | . . . Known Exits Taken . | . . . Unknown Exits Taken 2 | 1 1 . Scrap Searched . | . . . Spaces Dug 5 | . 5 . Terrain Destroyed 63 | . 63 . Melee . | . . . Projectile . | . . . AOE 63 | . 63 . Terrain Rammed . | . . . Walls Destroyed . | . . . Machines Disabled . | . . . Actions | -11 -10 -10 --------- Run | Yrd Mat Min Total 842 | 69 744 29 Wait 38 | . 33 5 Move 649 | 59 577 13 Hop . | . . . Pick Up 17 | 2 15 . Fast Attach 11 | 5 6 . Attach 6 | 1 3 2 Detach . | . . . Swap 10 | 1 9 . Drop 3 | . 3 . Fire 108 | 1 98 9 Melee . | . . . Ram . | . . . Kick . | . . . Crush . | . . . Escape Stasis . | . . . Rewire . | . . . Trap . | . . . Miscellaneous . | . . . Route ------- -11/Scrapyard -10/Materials (discovered 3 exits: [*Mat x2] / [*Min]) -10/Mines History --------- Turn | Location | Event 10 | -11/Scrapyard | Discovered new exit (range 16) 69 | -11/Scrapyard | Entered Materials 308 | -10/Materials | Build established: Mutant 313 | -10/Materials | Discovered new exit (range 5) 560 | -10/Materials | Central database locked down 569 | -10/Materials | Discovered new exit (range 15) 886 | -10/Materials | Repaired Wheel 1177 | -10/Materials | Discovered new exit (range 9) 1219 | -10/Materials | Entered Mines 1245 | -10/Mines | Core integrity fell below 50% 1262 | -10/Mines | Core integrity fell below 20% 1269 | -10/Mines | Destroyed by YI-UF0 with YI-UF0's Doublenader Last Messages --------------- 01150_ K-01 Serf cleans the Atomic Centrifuge. 01152_ T-07 Excavator is excavating. 01153_ K-01 Serf cleans the Atomic Centrifuge. 01177_ EXIT=FOUND LOCATION=UNKNOWN GOAL=ESCAPE Something is scanning the area. 01220_ A crazy derelict wanders into view. 01220_ T-07 Excavator is excavating. 01237_ YI-UF0 mumbles something. 01245_ YI-UF0: "BOOM TO YOU TOO!" 01247_ The unstable cave ceiling collapses. 01250_ Wheel destroyed. 01256_ The unstable cave ceiling collapses. 01259_ Ion Engine destroyed. 01260_ The unstable cave ceiling collapses. 01265_ Assault Rifle destroyed. 01265_ Hrd. Light Armor Plating destroyed. 01266_ YI-UF0 mumbles something. 01267_ The unstable cave ceiling collapses. Map ----- +----------------------------------------------------+ | | | | | | | | | | | | | | | | | | | | | | | ???????????????????????????????????????????? | | ???????????????????????????????????????????? | | ???????????????????????????????????????????? | | ???????????????????????????????????????????? | | ???????????????????????????????????????????? | | ???????????????????????????????????????????? | | ????????????????##?????????????????????????? | | ???????????????## ?????????????????????????? | | ?????????????### ####?????????????????????? | | ????????????## ####??????????????????? | | ????????????# #??????????????????? | | ????????????# ###?????????????????? | | ?????????????# #?????????????????? | | ?????????????# #??????????????????? | | ?????????????# @ #??????????????????? | | ??????## #??????????????????? | | ????g # ##??????????????????? | | ????? ??????????????????? | | ????? #### #?????????????????? | | ????????? ????## #????????????????? | | ????????##???????# #??##### ??????? | | ?????????????????# # ?????? | | ?????????????????## ?????? | | ????????????????## ## ######???????? | | ?????????######## g ## ??????? | | ???????# ??????? | | ????????# #########????????? | | ????????##### #????????????????? | | ????????????# ### ##????????????????? | | ????????????## ##??## ##?????????????????? | | ?????????????###?????####??????????????????? | | ???????????????????????????????????????????? | | ???????????????????????????????????????????? | | ???????????????????????????????????????????? | | ???????????????????????????????????????????? | | ???????????????????????????????????????????? | | ???????????????????????????????????????????? | | ???????????????????????????????????????????? | | ???????????????????????????????????????????? | +----------------------------------------------------+ Best States ------------- Heat Dissipation 35 Energy Generation 10 Energy Capacity 250 Matter Stores 300 Matter Capacity 300 Sight Range 16 Terrain Scan Density 10 Armor Coverage 150 Evasion (%) 42 Item Schematics ----------------- None Robot Schematics ------------------ None Fabricated ------------ Nothing Repaired ---------- Wheel | 15% | -10/Materials Studied --------- None Alien Tech Used ----------------- None Achievements -------------- None Challenges ------------ None Game ------ Seed GrenadeRecyclingDiverter Manual? 0 Play Time 00:10:17 Cumulative 335.0 hours Start 2025.11.25 @ 20:24:11 End 2025.11.25 @ 20:34:01 Sessions 1 Manual Loads 0 Difficulty Rogue Special Mode None Game No. 354 Rogue 350 Adventurer 3 Explorer 1 Win Type - Total 2 Types 2/0/0/0/0/0/0/0/0/0 Lore% 82 Gallery% 78 Achievement% 64 Wizard Run 0 Options --------- Layout 0 ASCII 0 Keyboard 0 Movement Mouse Keybinds 0 Fullscreen 2 Font 18/SmallcapsGlow Map View 76x50 Zoom Use 0% Tactical HUD 1 Map Filters NONE Filters NONE Steam 1 RUN: d7b431f3-3f31-4eb1-952f-545bcaf2e4fa